fUST/lending_fUST_20260412
["ID","MTS","AMOUNT","RATE_DAILY","PERIOD"]
[420340611,1776001846746,-500.0,0.00016438,2]
[420340613,1776001846765,-500.0,0.00016438,2]
[420340616,1776001846775,-500.0,0.00016438,2]
[420340617,1776001846786,-500.0,0.00016438,2]
[420340620,1776001846801,-659.32,0.00016438,2]
[420340621,1776001846821,-844.8,0.00016438,2]
[420340624,1776001846832,-500.0,0.00016438,2]
[420340626,1776001846842,-581.29,0.00016438,2]
[420340627,1776001846856,-500.0,0.00016438,2]
[420340629,1776001846870,-500.0,0.00016438,2]
[420340631,1776001846880,-500.0,0.00016438,2]
[420340633,1776001846892,-500.0,0.00016438,2]
[420340636,1776001846917,-500.0,0.00016438,2]
[420340638,1776001846926,-500.0,0.00016438,2]
[420340639,1776001846939,-500.21406749,0.00016438,2]
[420340641,1776001846957,-500.0,0.00016438,2]
[420340645,1776001846969,-500.0,0.00016438,2]
[420340647,1776001846981,-500.0,0.00016438,2]
[420340650,1776001847012,-500.0,0.00016438,2]
[420340652,1776001847022,-500.0,0.00016438,2]
[420340654,1776001847031,-500.0,0.00016438,2]
[420340656,1776001847048,-500.0,0.00016438,2]
[420340658,1776001847062,-1138.86,0.00016438,2]
[420340660,1776001847074,-500.0,0.00016438,2]
[420340662,1776001847097,-500.0,0.00016438,2]
[420340664,1776001847110,-500.0,0.00016438,2]
[420340666,1776001847127,-500.0,0.00016438,2]
[420340668,1776001847143,-554.94,0.00016438,2]
[420340670,1776001847161,-500.0,0.00016438,2]
[420340672,1776001847197,-500.0,0.00016438,2]
[420340674,1776001847207,-500.0,0.00016438,2]
[420340676,1776001847224,-500.0,0.00016438,2]
[420340678,1776001847237,-500.0,0.00016438,2]
[420340680,1776001847248,-500.0,0.00016438,2]
[420340682,1776001847267,-500.0,0.00016438,2]
[420340683,1776001847289,-500.0,0.00016438,2]
[420340685,1776001847299,-500.0,0.00016438,2]
[420340688,1776001847323,-500.0,0.00016438,2]
[420340690,1776001847334,-500.0,0.00016438,2]
[420340692,1776001847344,-500.0,0.00016438,2]
[420340694,1776001847378,-500.0,0.00016438,2]
[420340696,1776001847391,-1536.35,0.00016438,2]
[420340698,1776001847409,-500.0,0.00016438,2]
[420340700,1776001847423,-6102.16,0.00016438,2]
[420340702,1776001847435,-500.0,0.00016438,2]
[420340703,1776001847449,-500.0,0.00016438,2]
[420340706,1776001847477,-500.0,0.00016438,2]
[420340707,1776001847490,-500.0,0.00016438,2]
[420340710,1776001847524,-500.0,0.00016438,2]
[420340712,1776001847534,-500.0,0.00016438,2]
[420340714,1776001847544,-500.0,0.00016438,2]
[420340716,1776001847562,-500.0,0.00016438,2]
[420340717,1776001847590,-500.0,0.00016438,2]
[420340720,1776001847600,-556.87,0.00016438,2]
[420340722,1776001847610,-500.0,0.00016438,2]
[420340723,1776001847628,-500.0,0.00016438,2]
[420340725,1776001847638,-500.0,0.00016438,2]
[420340727,1776001847648,-500.0,0.00016438,2]
[420340729,1776001847659,-500.0,0.00016438,2]
[420340731,1776001847677,-500.0,0.00016438,2]
[420340733,1776001847689,-555.41,0.00016438,2]
[420340735,1776001847697,-500.0,0.00016438,2]
[420340737,1776001847710,-500.0,0.00016438,2]
[420340739,1776001847726,-500.0,0.00016438,2]
[420340741,1776001847737,-479.93580025,0.00016438,2]
[420340743,1776001847749,-500.0,0.00016438,2]
[420340745,1776001847769,-5300.54,0.00016438,2]
[420340747,1776001847780,-500.0,0.00016438,2]
[420340749,1776001847791,-500.0,0.00016438,2]
[420340751,1776001847810,-41.18863532,0.00016438,2]
[420340754,1776001847826,-458.81136468,0.00016438,2]
[420340756,1776001847838,-500.0,0.00016438,2]
[420340758,1776001847859,-500.0,0.00016438,2]
[420340760,1776001847868,-500.0,0.00016438,2]
[420340762,1776001847892,-76.68287771,0.00016438,2]
[420340765,1776001847904,-423.31712229,0.00016438,2]
[420340766,1776001847914,-3419.5389416,0.00016438,2]
[420340815,1776001848467,-261.0,0.00012079,2]
[420340818,1776001848492,-3325.63987826,0.00012079,2]
[420340852,1776001848874,-1413.36012174,0.00012079,2]
[420340854,1776001848892,-160.0,0.00015065,7]
[420340857,1776001848901,-291.0,0.00015933,2]
[420340858,1776001848915,-910.0,0.00016094,2]
[420340860,1776001848928,-209.0210584,0.00016438,2]
[420340862,1776001848957,-500.0,0.00016438,2]
[420340864,1776001848969,-500.0,0.00016438,2]
[420340867,1776001848984,-500.0,0.00016438,2]
[420340869,1776001849002,-500.0,0.00016438,2]
[420340871,1776001849012,-500.0,0.00016438,2]
[420340873,1776001849028,-500.0,0.00016438,2]
[420340874,1776001849054,-2841.01,0.00016438,2]
[420340876,1776001849063,-500.0,0.00016438,2]
[420340878,1776001849074,-500.0,0.00016438,2]
[420340880,1776001849097,-500.0,0.00016438,2]
[420340882,1776001849106,-460.30605325,0.00016438,2]
[420340885,1776001849118,-500.0,0.00016438,2]
[420340887,1776001849141,-500.0,0.00016438,2]
[420340889,1776001849163,-362.33802467,0.00016438,2]
[420340891,1776001849178,-500.0,0.00016438,2]
[420340893,1776001849195,-500.0,0.00016438,2]
[420340895,1776001849204,-500.0,0.00016438,2]
[420340897,1776001849214,-4228.53,0.00016438,2]
[420340899,1776001849233,-500.0,0.00016438,2]
[420340901,1776001849246,-7970.55,0.00016438,2]
[420340903,1776001849258,-2129.58716226,0.00016438,2]
[420340905,1776001849299,-1064.49500704,0.00016438,2]
[420340908,1776001849322,-1351.01194729,0.00016438,2]
[420340910,1776001849354,-1936.42588341,0.00016438,2]
[420340912,1776001849367,-7446.32,0.00016438,2]
[420340914,1776001849395,-500.0,0.00016438,2]
[420340916,1776001849425,-500.0,0.00016438,2]
[420340918,1776001849435,-500.0,0.00016438,2]
[420340920,1776001849453,-841.41,0.00016438,2]
[420340922,1776001849465,-500.0,0.00016438,2]
[420340924,1776001849476,-500.0,0.00016438,2]
[420340926,1776001849487,-500.0,0.00016438,2]
[420340928,1776001849499,-500.0,0.00016438,2]
[420340930,1776001849513,-500.0,0.00016438,2]
[420340931,1776001849538,-500.0,0.00016438,2]
[420340934,1776001849548,-500.0,0.00016438,2]
[420340936,1776001849558,-500.0,0.00016438,2]
[420340938,1776001849571,-500.0,0.00016438,2]
[420340940,1776001849585,-500.0,0.00016438,2]
[420340942,1776001849595,-5461.45,0.00016438,2]
[420340944,1776001849605,-396.98210938,0.00016438,2]
[420340946,1776001849624,-500.0,0.00016438,2]
[420340948,1776001849635,-500.0,0.00016438,2]
[420340950,1776001849656,-500.0,0.00016438,2]
[420340952,1776001849666,-500.0,0.00016438,2]
[420340954,1776001849675,-5589.2,0.00016438,2]
[420340956,1776001849685,-500.0,0.00016438,2]
[420340958,1776001849704,-500.0,0.00016438,2]
[420340960,1776001849714,-4853.12,0.00016438,2]
[420340962,1776001849724,-500.0,0.00016438,2]
[420340964,1776001849735,-500.0,0.00016438,2]
[420340966,1776001849749,-500.0,0.00016438,2]
[420340968,1776001849758,-500.0,0.00016438,2]
[420340970,1776001849769,-500.0,0.00016438,2]
[420340972,1776001849779,-686.57,0.00016438,2]
[420340973,1776001849802,-500.0,0.00016438,2]
[420340975,1776001849811,-11063.88,0.00016438,2]
[420340977,1776001849821,-500.0,0.00016438,2]
[420340979,1776001849831,-500.0,0.00016438,2]
[420340981,1776001849844,-500.0,0.00016438,2]
[420340983,1776001849853,-500.0,0.00016438,2]
[420340985,1776001849863,-2127.83,0.00016438,2]
[420340987,1776001849876,-500.0,0.00016438,2]
[420340989,1776001849887,-500.0,0.00016438,2]
[420340991,1776001849900,-500.0,0.00016438,2]
[420340993,1776001849910,-600.66,0.00016438,2]
[420340995,1776001849924,-5889.93,0.00016438,2]
[420340997,1776001849939,-500.0,0.00016438,2]
[420340999,1776001849967,-500.0,0.00016438,2]
[420341001,1776001849992,-500.0,0.00016438,2]
[420341003,1776001850006,-500.0,0.00016438,2]
[420341006,1776001850027,-208.7767206,0.00016438,2]
[420341007,1776001850039,-500.0,0.00016438,2]
[420341009,1776001850057,-524.81,0.00016438,2]
[420341012,1776001850070,-500.0,0.00016438,2]
[420341014,1776001850083,-500.0,0.00016438,2]
[420341016,1776001850098,-500.0,0.00016438,2]
[420341018,1776001850108,-500.0,0.00016438,2]
[420341020,1776001850119,-500.0,0.00016438,2]
[420341021,1776001850141,-500.0,0.00016438,2]
[420341024,1776001850151,-500.0,0.00016438,2]
[420341025,1776001850161,-548.4,0.00016438,2]
[420341027,1776001850178,-500.0,0.00016438,2]
[420341030,1776001850189,-500.0,0.00016438,2]
[420341032,1776001850199,-500.0,0.00016438,2]
[420341033,1776001850211,-500.0,0.00016438,2]
[420341036,1776001850230,-500.0,0.00016438,2]
[420341038,1776001850240,-163.97775633,0.00016438,2]
[420341040,1776001850251,-630.3,0.00016438,2]
[420341042,1776001850278,-504.93,0.00016438,2]
[420341044,1776001850289,-500.0,0.00016438,2]
[420341046,1776001850319,-500.0,0.00016438,2]
[420341048,1776001850337,-507.46,0.00016438,2]
[420341050,1776001850349,-500.0,0.00016438,2]
[420341052,1776001850388,-500.0,0.00016438,2]
[420341054,1776001850402,-500.0,0.00016438,2]
[420341056,1776001850417,-500.0,0.00016438,2]
[420341058,1776001850447,-500.0,0.00016438,2]
[420341059,1776001850484,-500.0,0.00016438,2]
[420341061,1776001850515,-500.0,0.00016438,2]
[420341063,1776001850541,-328.63900764,0.00016438,2]
[420341065,1776001850553,-500.0,0.00016438,2]
[420341068,1776001850569,-500.0,0.00016438,2]
[420341069,1776001850581,-500.0,0.00016438,2]
[420341071,1776001850591,-500.0,0.00016438,2]
[420341073,1776001850605,-500.0,0.00016438,2]
[420341076,1776001850616,-500.0,0.00016438,2]
[420341078,1776001850630,-500.0,0.00016438,2]
[420341079,1776001850642,-500.0,0.00016438,2]
[420341082,1776001850653,-500.0,0.00016438,2]
[420341084,1776001850666,-500.0,0.00016438,2]
[420341085,1776001850685,-500.0,0.00016438,2]
[420341087,1776001850695,-70.97105056,0.00016438,2]
[420341095,1776002402765,153.74,2e-05,2]
[420341097,1776002424434,-153.74,2.1e-05,2]
[420341098,1776002424504,-153.74,2.2e-05,2]
[420341099,1776002424565,-153.74,2.2e-05,2]
[420341100,1776002424632,-153.74,2.3e-05,2]
[420341101,1776002499807,336.95,3.706e-05,30]
[420341103,1776002738366,-300.0,2.305e-05,2]
[420341104,1776002738499,-278.36054796,2.305e-05,2]
[420341123,1776003031842,-5000.0,2.214e-05,2]
[420341125,1776003031851,-2354.47059669,2.236e-05,2]
[420341128,1776003031862,-2645.52940331,2.236e-05,2]
[420341129,1776003031873,-153.74,2.4e-05,2]
[420341131,1776003031883,-300.0,2.445e-05,2]
[420341133,1776003031895,-1200.0,2.445e-05,2]
[420341135,1776003031906,-300.0,2.446e-05,2]
[420341137,1776003031921,-300.0,2.446e-05,2]
[420341139,1776003031932,-300.0,2.446e-05,2]
[420341141,1776003031942,-300.0,2.446e-05,2]
[420341143,1776003031956,-300.0,2.446e-05,2]
[420341145,1776003031966,-300.0,2.446e-05,2]
[420341147,1776003031983,-300.0,2.446e-05,2]
[420341149,1776003032001,-300.0,2.446e-05,2]
[420341150,1776003032020,-300.0,2.446e-05,2]
[420341151,1776003032043,-300.0,2.446e-05,2]
[420341152,1776003032070,-300.0,2.446e-05,2]
[420341153,1776003032102,-300.0,2.446e-05,2]
[420341154,1776003032224,-300.0,2.446e-05,2]
[420341155,1776003032337,-300.0,2.446e-05,2]
[420341156,1776003032351,-300.0,2.446e-05,2]
[420341157,1776003032367,-600.0,2.494e-05,2]
[420341158,1776003032386,-153.74,2.5e-05,2]
[420341159,1776003032403,-153.74,2.6e-05,2]
[420341160,1776003032418,-153.74,2.6e-05,2]
[420341161,1776003032438,-300.0,2.689e-05,2]
[420341162,1776003032461,-1680.0,2.689e-05,2]
[420341163,1776003032488,-153.74,2.7e-05,2]
[420341164,1776003032511,-720.0,2.743e-05,2]
[420341165,1776003032520,-153.74,2.8e-05,2]
[420341166,1776003032545,-153.74,2.9e-05,2]
[420341167,1776003032555,-153.74,3e-05,2]
[420341168,1776003032564,-864.0,3.018e-05,2]
[420341169,1776003032586,-153.74,3.1e-05,2]
[420341170,1776003032596,-153.74,3.1e-05,2]
[420341171,1776003032605,-153.74,3.2e-05,2]
[420341172,1776003032615,-153.74,3.3e-05,2]
[420341173,1776003032630,-1000.0,3.319e-05,2]
[420341174,1776003032639,-153.74,3.4e-05,2]
[420341175,1776003032649,-153.74,3.5e-05,2]
[420341176,1776003032659,-153.74,3.5e-05,2]
[420341177,1776003032674,-153.74,3.6e-05,2]
[420341178,1776003032685,-1000.0,3.651e-05,2]
[420341179,1776003032695,-244.0,3.651e-05,2]
[420341180,1776003032705,-153.74,3.7e-05,2]
[420341181,1776003032722,-200.0,3.706e-05,2]
[420341182,1776003032731,-200.0,3.706e-05,2]
[420341183,1776003032741,-200.0,3.706e-05,7]
[420341184,1776003032751,-200.0,3.706e-05,7]
[420341185,1776003032769,-153.74,3.8e-05,2]
[420341186,1776003032779,-153.74,3.9e-05,2]
[420341187,1776003032789,-153.74,3.9e-05,2]
[420341188,1776003032798,-257.00093487,3.9e-05,2]
[420341189,1776003032812,-153.74,4e-05,2]
[420341190,1776003032821,-1000.0,4.016e-05,2]
[420341191,1776003032831,-492.0,4.016e-05,2]
[420341192,1776003032841,-153.74,4.1e-05,2]
[420341193,1776003032856,-153.74,4.2e-05,2]
[420341194,1776003032867,-177.0,4.271e-05,2]
[420341195,1776003032878,-153.74,4.3e-05,2]
[420341196,1776003032891,-153.74,4.4e-05,2]
[420341197,1776003032902,-153.74,4.4e-05,2]
[420341198,1776003032913,-1000.0,4.418e-05,2]
[420341199,1776003032923,-791.0,4.418e-05,2]
[420341200,1776003032934,-153.74,4.5e-05,2]
[420341201,1776003032949,-153.74,4.6e-05,2]
[420341202,1776003032960,-153.74,4.7e-05,2]
[420341203,1776003032969,-153.74,4.8e-05,2]
[420341204,1776003032979,-153.74,4.8e-05,2]
[420341205,1776003032993,-1000.0,4.86e-05,2]
[420341206,1776003033005,-61.96463001,4.86e-05,2]
[420341247,1776003038225,-166.7005745,2.114e-05,2]
[420341249,1776003038236,-490.37115267,4.86e-05,2]
[420341296,1776003040885,-447.66421732,4.86e-05,2]
[420341297,1776003040911,-153.74,4.9e-05,2]
[420341299,1776003040932,-153.74,5e-05,2]
[420341300,1776003040966,-1000.0,5.346e-05,2]
[420341301,1776003040981,-1000.0,5.346e-05,2]
[420341302,1776003041019,-579.0,5.346e-05,2]
[420341303,1776003041042,-1000.0,5.88e-05,2]
[420341304,1776003041053,-1000.0,5.88e-05,2]
[420341305,1776003041067,-1000.0,5.88e-05,2]
[420341306,1776003041083,-204.0,6.271e-05,2]
[420341307,1776003041102,-395.0,6.469e-05,2]
[420341308,1776003041115,-231.0,8.271e-05,2]
[420341309,1776003041128,-500.0,8.534e-05,2]
[420341310,1776003041150,-500.0,8.983e-05,2]
[420341311,1776003041159,-500.0,9.456e-05,2]
[420341312,1776003041181,-500.0,9.929e-05,2]
[420341313,1776003041193,-264.50537343,0.0001,2]
[420341314,1776003041203,-258.0,0.00010271,2]
[420341315,1776003041220,-339.64428275,0.00010425,2]
[420341316,1776003041230,-209.64680095,0.00010862,2]
[420341317,1776003041240,-500.0,0.00011999,2]
[420341318,1776003041255,-500.0,0.00011999,2]
[420341319,1776003041265,-500.0,0.00011999,2]
[420341320,1776003041276,-500.0,0.00011999,2]
[420341321,1776003041287,-500.0,0.00011999,2]
[420341322,1776003041300,-500.0,0.00011999,2]
[420341323,1776003041309,-500.0,0.00011999,2]
[420341324,1776003041318,-500.0,0.00011999,2]
[420341325,1776003041329,-500.0,0.00011999,2]
[420341326,1776003041342,-551.5354154,0.00011999,2]
[420341327,1776003041352,-478.32296607,0.00011999,2]
[420341328,1776003041361,-322.17743509,0.00011999,2]
[420341329,1776003041371,-9654.41089776,0.00012,2]
[420341330,1776003041382,-285.0,0.00012271,2]
[420341331,1776003041391,-1407.0,0.00012589,2]
[420341332,1776003041400,-644.0,0.00012589,2]
[420341333,1776003041409,-441.214,0.00012589,2]
[420341334,1776003041419,-738.0,0.0001259,2]
[420341335,1776003041428,-184.0,0.0001259,2]
[420341336,1776003041437,-1020.63471282,0.000129,2]
[420341337,1776003041447,-1020.63471275,0.000129,2]
[420341338,1776003041457,-1020.63471275,0.000129,2]
[420341339,1776003041466,-1020.63471275,0.000129,2]
[420341340,1776003041475,-1020.63471275,0.00013222,2]
[420341341,1776003041485,-500.0,0.00013698,2]
[420341342,1776003041494,-500.0,0.00013698,2]
[420341343,1776003041505,-1000.0,0.00013699,2]
[420341344,1776003041514,-312.0,0.00014271,2]
[420341345,1776003041523,-537.6845,0.0001438,2]
[420341346,1776003041533,-2150.738,0.0001438,2]
[420341347,1776003041542,-160.0,0.00014761,2]
[420341348,1776003041552,-478.54497976,0.00014773,2]
[420341349,1776003041562,-646.55588165,0.00014773,2]
[420341350,1776003041572,-500.0,0.00014773,2]
[420341351,1776003041581,-500.0,0.00014773,2]
[420341352,1776003041590,-500.0,0.00014773,2]
[420341353,1776003041599,-500.0,0.00014773,2]
[420341354,1776003041610,-500.0,0.00014773,2]
[420341355,1776003041619,-500.0,0.00014773,2]
[420341356,1776003041629,-362.02153391,0.00014773,2]
[420341357,1776003041641,-212.94626968,0.00014773,2]
[420341358,1776003041651,-500.0,0.00014773,2]
[420341359,1776003041661,-500.0,0.00014773,2]
[420341360,1776003041671,-500.0,0.00014773,2]
[420341361,1776003041685,-501.53725078,0.00014773,2]
[420341362,1776003041694,-500.0,0.00014773,2]
[420341363,1776003041705,-313.06424459,0.00014773,2]
[420341364,1776003041715,-500.0,0.00014773,2]
[420341365,1776003041732,-514.57875484,0.00014773,2]
[420341366,1776003041742,-504.11009376,0.00014773,2]
[420341367,1776003041751,-500.0,0.00014773,2]
[420341368,1776003041772,-503.44748337,0.00014773,2]
[420341369,1776003041782,-234.85038967,0.00014773,2]
[420341370,1776003041793,-390.56733394,0.00014798,2]
[420341371,1776003041812,-500.0,0.00014798,2]
[420341372,1776003041826,-500.0,0.00014798,2]
[420341373,1776003041836,-500.0,0.00014798,2]
[420341374,1776003041847,-500.0,0.00014798,2]
[420341375,1776003041866,-500.0,0.00014798,2]
[420341376,1776003041878,-500.0,0.00014798,2]
[420341377,1776003041887,-500.0,0.00014798,2]
[420341378,1776003041910,-500.0,0.00014798,2]
[420341379,1776003041925,-500.0,0.00014798,2]
[420341380,1776003041948,-500.0,0.00014798,2]
[420341381,1776003041963,-500.0,0.00014798,2]
[420341382,1776003041973,-521.51996839,0.00014798,2]
[420341383,1776003041996,-500.0,0.00014798,2]
[420341384,1776003042022,-500.0,0.00014798,2]
[420341385,1776003042032,-286.19205109,0.00014798,2]
[420341386,1776003042062,-500.0,0.00014798,2]
[420341387,1776003042072,-500.0,0.00014798,2]
[420341388,1776003042092,-524.32328829,0.00014798,2]
[420341389,1776003042110,-500.0,0.00014798,2]
[420341390,1776003042121,-500.0,0.00014798,2]
[420341391,1776003042144,-500.0,0.00014798,2]
[420341392,1776003042154,-600.0,0.00014798,2]
[420341393,1776003042164,-500.0,0.00014798,2]
[420341394,1776003042189,-500.0,0.00014798,2]
[420341395,1776003042199,-500.0,0.00014798,2]
[420341396,1776003042208,-500.0,0.00014798,2]
[420341397,1776003042236,-500.0,0.00014798,2]
[420341398,1776003042249,-500.0,0.00014798,2]
[420341399,1776003042263,-500.0,0.00014798,2]
[420341400,1776003042275,-500.0,0.00014798,2]
[420341401,1776003042288,-500.0,0.00014798,2]
[420341402,1776003042302,-500.0,0.00014798,2]
[420341403,1776003042312,-500.0,0.00014798,2]
[420341404,1776003042326,-290.10789054,0.00014798,2]
[420341405,1776003042354,-500.0,0.00014798,2]
[420341406,1776003042365,-66150.55767933,0.00014799,2]
[420341408,1776003042428,-7473.81311358,0.00014799,2]
[420341419,1776003046073,-10803.36995171,0.00014799,2]
[420341472,1776004231942,-1125.69333873,0.00010635,2]
[420341482,1776004232034,-3874.30666127,0.00010635,2]
[420341484,1776004232046,-569.0,0.00010635,2]
[420341486,1776004232064,-1640.69333273,0.00010742,2]
[420341570,1776004238440,-780.0,0.00010742,2]
[420341571,1776004238465,-1515.10008273,0.00010742,2]
[420341613,1776004241033,-1064.20658454,0.00010742,2]
[420341615,1776004241054,-7478.5775848,0.00011058,2]
[420341617,1776004241073,-2169.42276123,0.00011387,2]
[420341619,1776004241088,-4351.65947597,0.00011487,2]
[420341621,1776004241098,-1997.14038182,0.00011687,2]
[420341794,1776004243443,-1415.33730333,0.00011687,2]
[420341980,1776004246415,-5000.0,0.0001157,2]
[420341982,1776004246433,-1482.16354906,0.00011687,2]
[420341984,1776004246443,-2692.66920326,0.00011787,2]
[420342410,1776004300699,-251.24474683,0.0001,2]
[420342411,1776004300803,-2046.47626465,0.00011552,2]
[420342464,1776005402854,161.53,2e-05,2]
[420342490,1776005432303,-5000.0,8.863e-05,2]
[420342492,1776005432313,-350.40788522,8.953e-05,2]
[420342494,1776005432384,-4649.59211478,8.953e-05,2]
[420342496,1776005432394,-545.0,8.953e-05,2]
[420342497,1776005432404,-1200.0,9.042e-05,2]
[420342499,1776005432415,-480.0,9.946e-05,2]
[420342501,1776005432424,-300.0,9.996e-05,2]
[420342503,1776005432437,-300.0,9.996e-05,2]
[420342505,1776005432446,-300.0,9.996e-05,2]
[420342507,1776005432455,-251.24474683,0.0001,2]
[420342509,1776005432467,-177.0,0.00010908,2]
[420342511,1776005432478,-167.0183969,0.0001105,2]
[420342513,1776005432487,-1658.47395928,0.00011787,2]
[420342515,1776005432505,-894.39375821,0.00011787,2]
[420342516,1776005432514,-1200.568703,0.00011887,2]
[420342519,1776005432525,-752.87842,0.00011887,2]
[420342521,1776005432546,-1012.27440141,0.00011887,2]
[420342523,1776005432558,-2630.71108288,0.00011887,2]
[420342525,1776005432582,-363.36586598,0.00011987,2]
[420342528,1776005432593,-5583.96242785,0.00011987,2]
[420342529,1776005432616,-600.0,0.00012017,2]
[420342532,1776005432626,-916.270002,0.00012138,2]
[420342534,1776005432636,-6533.89619071,0.00012592,2]
[420342536,1776005432653,-916.270002,0.00012649,2]
[420342538,1776005432670,-229.161,0.00012707,2]
[420342540,1776005432679,-204.0,0.00012908,2]
[420342541,1776005432692,-916.270002,0.0001316,2]
[420342543,1776005432707,-720.0,0.00013218,2]
[420342545,1776005432716,-6914.88886045,0.00013541,2]
[420342548,1776005432736,-753.30399023,0.00013571,2]
[420342550,1776005432745,-916.270002,0.00013671,2]
[420342551,1776005432755,-514.08137054,0.00013698,2]
[420342553,1776005432772,-574.70480247,0.00013698,2]
[420342555,1776005432784,-486.5588376,0.00013698,2]
[420342558,1776005432796,-33.87157496,0.00013698,2]
[420342560,1776005432805,-320.12342504,0.00013698,2]
[420342564,1776005432843,-179.87657496,0.00013698,2]
[420342566,1776005432858,-500.0,0.00013698,2]
[420342568,1776005432867,-500.0,0.00013698,2]
[420342570,1776005432875,-538.83775916,0.00013698,2]
[420342571,1776005432894,-500.0,0.00013698,2]
[420342573,1776005432905,-500.0,0.00013698,2]
[420342575,1776005432916,-500.0,0.00013698,2]
[420342577,1776005432927,-500.0,0.00013698,2]
[420342579,1776005432938,-156.0,0.00013699,2]
[420342581,1776005432948,-1000.0,0.00013699,2]
[420342583,1776005432958,-1000.0,0.00013699,2]
[420342585,1776005432971,-500.0,0.00013783,2]
[420342587,1776005432983,-500.0,0.00013783,2]
[420342589,1776005432993,-500.0,0.00013783,2]
[420342591,1776005433003,-635.5873575,0.00013784,2]
[420342593,1776005433018,-8266.4211865,0.00013784,2]
[420342595,1776005433029,-263.3369524,0.00013832,2]
[420342597,1776005433044,-1339.14330203,0.00013834,2]
[420342599,1776005433057,-2580.94760653,0.00014,2]
[420342601,1776005433066,-991.0,0.00014,2]
[420342603,1776005433084,-500.0,0.00014018,2]
[420342605,1776005433096,-1407.0,0.00014018,2]
[420342607,1776005433113,-644.0,0.00014018,2]
[420342609,1776005433135,-738.0,0.00014018,2]
[420342610,1776005433156,-184.0,0.00014018,2]
[420342612,1776005433174,-2207.0,0.00014018,2]
[420342615,1776005433204,-753.30399023,0.00014178,2]
[420342616,1776005433239,-500.0,0.00014181,2]
[420342618,1776005433254,-916.270002,0.00014182,2]
[420342621,1776005433275,-325.1735551,0.00014485,2]
[420342622,1776005433287,-528.6989426,0.000145,2]
[420342624,1776005433321,-864.0,0.0001454,2]
[420342626,1776005433331,-162.380719,0.00014632,2]
[420342629,1776005433348,-478.75725327,0.00014632,2]
[420342630,1776005433368,-537.6845,0.00014632,2]
[420342632,1776005433379,-885.12271633,0.00014632,2]
[420342635,1776005433412,-214.89508367,0.00014632,2]
[420342637,1776005433422,-578.20924308,0.00014632,2]
[420342639,1776005433439,-2150.738,0.00014632,2]
[420342641,1776005433469,-557.5788265,0.00014687,2]
[420342643,1776005433478,-916.270002,0.00014693,2]
[420342645,1776005433507,-256.40884473,0.00014699,2]
[420342647,1776005433519,-243.59115527,0.00014699,2]
[420342649,1776005433535,-151.0,0.000147,2]
[420342652,1776005433565,-151.0,0.000147,2]
[420342654,1776005433574,-151.0,0.000147,2]
[420342656,1776005433587,-151.0,0.000147,2]
[420342658,1776005433608,-151.0,0.000147,2]
[420342660,1776005433618,-5.88119414,0.00014737,2]
[420342662,1776005433634,-494.11880586,0.00014737,2]
[420342664,1776005433649,-500.0,0.00014739,2]
[420342666,1776005433659,-500.0,0.00014739,2]
[420342668,1776005433669,-500.0,0.00014739,2]
[420342670,1776005433684,-500.0,0.00014739,2]
[420342672,1776005433698,-500.0,0.00014739,2]
[420342674,1776005433708,-5980.47046039,0.0001474,2]